fUST/lending_fUST_20250301
["ID","MTS","AMOUNT","RATE_DAILY","PERIOD"]
[354912477,1740814242503,-616.57,0.00034246,2]
[354912478,1740814242513,-500.0,0.00034246,2]
[354912479,1740814242523,-2413.2,0.00034246,2]
[354912480,1740814242532,-911.66,0.00034246,2]
[354912481,1740814242542,-500.0,0.00034246,2]
[354912482,1740814242552,-3399.71,0.00034246,2]
[354912483,1740814242562,-500.0,0.00034246,2]
[354912484,1740814242571,-500.0,0.00034246,2]
[354912485,1740814242581,-837.2,0.00034246,2]
[354912486,1740814242591,-7479.01,0.00034246,2]
[354912487,1740814242600,-500.0,0.00034246,2]
[354912488,1740814242610,-500.0,0.00034246,2]
[354912489,1740814242619,-521.18046413,0.00034246,2]
[354912490,1740814242629,-500.0,0.00034246,2]
[354912491,1740814242639,-597.61,0.00034246,2]
[354912492,1740814242649,-3075.19,0.00034246,2]
[354912493,1740814242659,-500.0,0.00034272,5]
[354912494,1740814242669,-277.00956911,0.00034272,5]
[354912495,1740814242678,-500.0,0.00034272,2]
[354912496,1740814242688,-500.0,0.00034272,5]
[354912497,1740814242698,-1000.0,0.0003428,2]
[354912498,1740814242707,-500.0,0.0003443,5]
[354912499,1740814242717,-208.87729278,0.00034479,6]
[354912500,1740814242726,-500.0,0.000345,5]
[354912501,1740814242735,-500.0,0.000345,5]
[354912502,1740814242745,-364.95,0.000345,7]
[354912503,1740814242755,-257.87264083,0.00034507,5]
[354912504,1740814242765,-500.0,0.00034507,5]
[354912505,1740814242775,-500.0,0.00034519,2]
[354912506,1740814242787,-500.0,0.00034519,2]
[354912507,1740814242798,-500.0,0.00034519,2]
[354912508,1740814242808,-719.3,0.00034519,2]
[354912509,1740814242817,-500.0,0.00034519,2]
[354912510,1740814242828,-1480.66,0.00034519,2]
[354912511,1740814242838,-500.0,0.00034519,2]
[354912512,1740814242847,-1824.0,0.00034519,2]
[354912513,1740814242858,-2265.96,0.00034519,2]
[354912514,1740814242868,-500.0,0.00034519,2]
[354912515,1740814242878,-1376.86,0.00034519,2]
[354912516,1740814242888,-500.0,0.00034519,2]
[354912517,1740814242897,-813.37,0.00034519,2]
[354912518,1740814242908,-500.0,0.00034519,2]
[354912519,1740814242918,-500.0,0.00034519,2]
[354912520,1740814242927,-500.0,0.00034519,2]
[354912521,1740814242937,-500.0,0.00034519,2]
[354912522,1740814242948,-1525.39,0.00034519,2]
[354912523,1740814242958,-500.0,0.00034519,2]
[354912524,1740814242968,-1365.6,0.00034519,2]
[354912525,1740814242979,-500.0,0.00034519,2]
[354912526,1740814242988,-1784.02,0.00034519,2]
[354912527,1740814242998,-2242.91,0.00034519,2]
[354912528,1740814243008,-4243.09,0.00034519,2]
[354912529,1740814243018,-8124.73,0.00034519,2]
[354912530,1740814243028,-723.8,0.00034519,2]
[354912531,1740814243037,-13128.63,0.00034519,2]
[354912532,1740814243048,-886.02,0.00034519,2]
[354912533,1740814243058,-592.53,0.00034519,2]
[354912534,1740814243068,-500.0,0.00034519,2]
[354912535,1740814243078,-3752.26,0.00034519,2]
[354912536,1740814243088,-558.5,0.00034519,2]
[354912537,1740814243099,-749.78,0.00034519,2]
[354912538,1740814243109,-580.69,0.00034519,2]
[354912539,1740814243119,-1646.51,0.00034519,2]
[354912540,1740814243129,-2619.44,0.00034519,2]
[354912541,1740814243139,-4192.25,0.00034519,2]
[354912542,1740814243149,-1437.91,0.00034519,2]
[354912543,1740814243159,-2160.39,0.00034519,2]
[354912544,1740814243168,-953.1,0.00034519,2]
[354912545,1740814243178,-2272.48,0.00034519,2]
[354912546,1740814243187,-782.01,0.00034519,2]
[354912547,1740814243197,-1283.55,0.00034519,2]
[354912548,1740814243207,-819.59,0.00034519,2]
[354912549,1740814243217,-1720.07,0.00034519,2]
[354912550,1740814243227,-542.75,0.00034519,2]
[354912551,1740814243236,-500.0,0.00034519,2]
[354912552,1740814243246,-2520.64,0.00034519,2]
[354912553,1740814243256,-1440.06,0.00034519,2]
[354912554,1740814243266,-500.0,0.00034519,2]
[354912555,1740814243278,-500.0,0.00034519,2]
[354912556,1740814243288,-788.45,0.00034519,2]
[354912557,1740814243298,-686.05,0.00034519,2]
[354912558,1740814243308,-2595.04,0.00034519,2]
[354912559,1740814243319,-556.6,0.00034519,2]
[354912560,1740814243329,-500.0,0.00034519,2]
[354912561,1740814243339,-500.0,0.00034519,2]
[354912562,1740814243349,-364.74,0.00034519,2]
[354912563,1740814243359,-1973.99,0.00034519,2]
[354912564,1740814243369,-1822.02,0.00034519,2]
[354912565,1740814243379,-890.47,0.00034519,2]
[354912566,1740814243388,-2792.48,0.00034519,2]
[354912567,1740814243398,-538.31,0.00034519,2]
[354912568,1740814243408,-2655.0,0.00034519,2]
[354912569,1740814243418,-500.43,0.00034519,2]
[354912570,1740814243428,-500.0,0.00034519,2]
[354912571,1740814243437,-559.59,0.00034519,2]
[354912572,1740814243448,-500.0,0.00034519,2]
[354912573,1740814243458,-1631.27,0.0003452,2]
[354912574,1740814243467,-500.0,0.0003452,2]
[354912575,1740814243477,-1335.74,0.0003452,2]
[354912576,1740814243488,-1232.32,0.0003452,2]
[354912577,1740814243498,-952.84,0.0003452,2]
[354912578,1740814243507,-549.74,0.0003452,2]
[354912579,1740814243517,-529.1,0.0003452,2]
[354912580,1740814243527,-1414.45,0.0003452,2]
[354912581,1740814243537,-1288.1,0.0003452,2]
[354912582,1740814243547,-500.0,0.0003452,2]
[354912583,1740814243557,-500.0,0.0003452,2]
[354912584,1740814243567,-500.0,0.0003452,2]
[354912585,1740814243577,-500.0,0.0003452,2]
[354912589,1740814243829,-516.91,0.0003452,2]
[354912590,1740814243851,-1508.46,0.0003452,2]
[354912591,1740814243861,-1127.29,0.0003452,2]
[354912592,1740814243872,-500.0,0.0003452,2]
[354912593,1740814243882,-500.0,0.0003452,2]
[354912594,1740814243892,-500.0,0.0003452,2]
[354912595,1740814243901,-500.0,0.0003452,2]
[354912596,1740814243911,-500.0,0.0003452,2]
[354912597,1740814243920,-627.79,0.0003452,2]
[354912598,1740814243929,-868.84,0.0003452,2]
[354912599,1740814243939,-500.0,0.0003452,2]
[354912600,1740814243948,-1239.75,0.0003452,2]
[354912601,1740814243958,-500.0,0.0003452,2]
[354912602,1740814243967,-500.0,0.0003452,2]
[354912603,1740814243976,-1937.87,0.0003452,2]
[354912604,1740814243986,-1853.43,0.0003452,2]
[354912605,1740814243995,-1134.62,0.0003452,2]
[354912606,1740814244005,-553.43,0.0003452,2]
[354912607,1740814244015,-500.0,0.0003452,2]
[354912608,1740814244024,-881.15,0.0003452,2]
[354912609,1740814244033,-500.0,0.0003452,2]
[354912610,1740814244043,-803.67,0.0003452,2]
[354912611,1740814244052,-500.0,0.0003452,2]
[354912612,1740814244062,-500.0,0.0003452,2]
[354912613,1740814244071,-2436.32,0.0003452,2]
[354912614,1740814244080,-2333.75,0.0003452,2]
[354912615,1740814244090,-735.15,0.0003452,2]
[354912616,1740814244100,-500.0,0.0003452,2]
[354912617,1740814244110,-3494.63,0.0003452,2]
[354912619,1740814244120,-5121.46,0.0003452,2]
[354912622,1740814244129,-500.0,0.0003452,2]
[354912624,1740814244139,-802.63,0.0003452,2]
[354912625,1740814244148,-2178.06,0.0003452,2]
[354912627,1740814244158,-2330.05,0.0003452,2]
[354912628,1740814244167,-708.64,0.0003452,2]
[354912629,1740814244177,-1646.73,0.0003452,2]
[354912630,1740814244187,-559.02,0.0003452,2]
[354912631,1740814244196,-717.26,0.0003452,2]
[354912632,1740814244206,-500.0,0.0003452,2]
[354912633,1740814244216,-500.0,0.0003452,2]
[354912634,1740814244226,-4470.23,0.0003452,2]
[354912635,1740814244235,-716.33,0.0003452,2]
[354912636,1740814244245,-616.57,0.0003452,2]
[354912637,1740814244254,-500.0,0.0003452,2]
[354912638,1740814244264,-2413.2,0.0003452,2]
[354912639,1740814244274,-911.66,0.0003452,2]
[354912640,1740814244283,-500.0,0.0003452,2]
[354912641,1740814244293,-3399.71,0.0003452,2]
[354912642,1740814244302,-522.27963479,0.0003452,2]
[354912643,1740814244312,-500.0,0.0003452,2]
[354912644,1740814244321,-837.2,0.0003452,2]
[354912645,1740814244331,-7479.01,0.0003452,2]
[354912646,1740814244340,-500.0,0.0003452,2]
[354912647,1740814244349,-500.0,0.0003452,2]
[354912648,1740814244359,-500.0,0.0003452,2]
[354912649,1740814244368,-597.61,0.0003452,2]
[354912650,1740814244378,-3075.19,0.0003452,2]
[354912651,1740814244387,-7931.5,0.000347,30]
[354912652,1740814244396,-500.0,0.00034792,2]
[354912653,1740814244405,-500.0,0.00034793,2]
[354912654,1740814244415,-500.0,0.00034793,2]
[354912655,1740814244424,-500.0,0.00034793,2]
[354912656,1740814244433,-719.3,0.00034793,2]
[354912657,1740814244442,-500.0,0.00034793,2]
[354912658,1740814244452,-1480.66,0.00034793,2]
[354912659,1740814244461,-500.0,0.00034793,2]
[354912660,1740814244471,-1824.0,0.00034793,2]
[354912661,1740814244481,-2265.96,0.00034793,2]
[354912662,1740814244490,-500.0,0.00034793,2]
[354912663,1740814244500,-1376.86,0.00034793,2]
[354912664,1740814244509,-500.0,0.00034793,2]
[354912665,1740814244519,-813.37,0.00034793,2]
[354912666,1740814244528,-500.0,0.00034793,2]
[354912667,1740814244538,-500.0,0.00034793,2]
[354912668,1740814244548,-500.0,0.00034793,2]
[354912669,1740814244557,-500.0,0.00034793,2]
[354912670,1740814244567,-1525.39,0.00034793,2]
[354912671,1740814244576,-500.0,0.00034793,2]
[354912672,1740814244585,-1365.6,0.00034793,2]
[354912673,1740814244595,-500.0,0.00034793,2]
[354912674,1740814244605,-1784.02,0.00034793,2]
[354912675,1740814244614,-2242.91,0.00034793,2]
[354912676,1740814244624,-4243.09,0.00034793,2]
[354912677,1740814244633,-8124.73,0.00034793,2]
[354912678,1740814244643,-723.8,0.00034793,2]
[354912679,1740814244652,-13128.63,0.00034793,2]
[354912680,1740814244661,-886.02,0.00034793,2]
[354912681,1740814244671,-592.53,0.00034793,2]
[354912682,1740814244681,-500.0,0.00034793,2]
[354912683,1740814244690,-3752.26,0.00034793,2]
[354912684,1740814244700,-558.5,0.00034793,2]
[354912685,1740814244710,-749.78,0.00034793,2]
[354912686,1740814244719,-580.69,0.00034793,2]
[354912687,1740814244729,-1646.51,0.00034793,2]
[354912688,1740814244738,-2619.44,0.00034793,2]
[354912689,1740814244747,-4192.25,0.00034793,2]
[354912690,1740814244757,-1437.91,0.00034793,2]
[354912691,1740814244766,-2160.39,0.00034793,2]
[354912692,1740814244776,-953.1,0.00034793,2]
[354912693,1740814244788,-2272.48,0.00034793,2]
[354912694,1740814244799,-782.01,0.00034793,2]
[354912695,1740814244809,-1283.55,0.00034793,2]
[354912696,1740814244819,-819.59,0.00034793,2]
[354912697,1740814244828,-1720.07,0.00034793,2]
[354912698,1740814244838,-542.75,0.00034793,2]
[354912699,1740814244847,-500.0,0.00034793,2]
[354912700,1740814244857,-2520.64,0.00034793,2]
[354912701,1740814244868,-1440.06,0.00034793,2]
[354912702,1740814244877,-500.0,0.00034793,2]
[354912703,1740814244886,-500.0,0.00034793,2]
[354912704,1740814244896,-788.45,0.00034793,2]
[354912705,1740814244906,-686.05,0.00034793,2]
[354912706,1740814244915,-2595.04,0.00034793,2]
[354912707,1740814244925,-556.6,0.00034793,2]
[354912708,1740814244935,-500.0,0.00034793,2]
[354912709,1740814244944,-500.0,0.00034793,2]
[354912710,1740814244954,-1973.99,0.00034793,2]
[354912711,1740814244964,-1822.02,0.00034793,2]
[354912712,1740814244973,-890.47,0.00034793,2]
[354912713,1740814244983,-2792.48,0.00034793,2]
[354912714,1740814244991,-538.31,0.00034793,2]
[354912715,1740814245001,-2655.0,0.00034793,2]
[354912717,1740814245011,-500.43,0.00034793,2]
[354912719,1740814245020,-500.0,0.00034793,2]
[354912721,1740814245029,-559.59,0.00034793,2]
[354912723,1740814245039,-500.0,0.00034793,2]
[354912725,1740814245048,-1631.27,0.00034794,2]
[354912726,1740814245057,-500.0,0.00034794,2]
[354912727,1740814245067,-1335.74,0.00034794,2]
[354912728,1740814245076,-1232.32,0.00034794,2]
[354912729,1740814245086,-952.84,0.00034794,2]
[354912730,1740814245096,-549.74,0.00034794,2]
[354912731,1740814245105,-529.1,0.00034794,2]
[354912732,1740814245115,-1414.45,0.00034794,2]
[354912733,1740814245124,-1288.1,0.00034794,2]
[354912734,1740814245133,-500.0,0.00034794,2]
[354912735,1740814245143,-500.0,0.00034794,2]
[354912736,1740814245153,-500.0,0.00034794,2]
[354912737,1740814245162,-500.0,0.00034794,2]
[354912738,1740814245172,-516.91,0.00034794,2]
[354912739,1740814245182,-1508.46,0.00034794,2]
[354912740,1740814245192,-1127.29,0.00034794,2]
[354912741,1740814245201,-500.0,0.00034794,2]
[354912742,1740814245211,-500.0,0.00034794,2]
[354912743,1740814245220,-500.0,0.00034794,2]
[354912744,1740814245231,-500.0,0.00034794,2]
[354912745,1740814245240,-500.0,0.00034794,2]
[354912746,1740814245250,-627.79,0.00034794,2]
[354912747,1740814245259,-868.84,0.00034794,2]
[354912748,1740814245268,-500.0,0.00034794,2]
[354912749,1740814245277,-1239.75,0.00034794,2]
[354912750,1740814245287,-500.0,0.00034794,2]
[354912751,1740814245296,-500.0,0.00034794,2]
[354912752,1740814245306,-1937.87,0.00034794,2]
[354912753,1740814245315,-1853.43,0.00034794,2]
[354912754,1740814245325,-1134.62,0.00034794,2]
[354912755,1740814245335,-553.43,0.00034794,2]
[354912756,1740814245344,-500.0,0.00034794,2]
[354912757,1740814245353,-881.15,0.00034794,2]
[354912758,1740814245363,-500.0,0.00034794,2]
[354912759,1740814245372,-803.67,0.00034794,2]
[354912760,1740814245381,-500.0,0.00034794,2]
[354912761,1740814245391,-500.0,0.00034794,2]
[354912762,1740814245400,-2436.32,0.00034794,2]
[354912763,1740814245410,-2333.75,0.00034794,2]
[354912764,1740814245419,-735.15,0.00034794,2]
[354912765,1740814245429,-265.77346555,0.00034794,2]
[354912766,1740814245439,-3494.63,0.00034794,2]
[354912767,1740814245449,-5121.46,0.00034794,2]
[354912768,1740814245459,-500.0,0.00034794,2]
[354912769,1740814245468,-802.63,0.00034794,2]
[354912770,1740814245478,-2178.06,0.00034794,2]
[354912771,1740814245488,-2330.05,0.00034794,2]
[354912772,1740814245497,-708.64,0.00034794,2]
[354912773,1740814245507,-1646.73,0.00034794,2]
[354912774,1740814245516,-559.02,0.00034794,2]
[354912775,1740814245526,-717.26,0.00034794,2]
[354912776,1740814245535,-472.65357167,0.00034794,2]
[354912777,1740814245544,-500.0,0.00034794,2]
[354912778,1740814245554,-4470.23,0.00034794,2]
[354912779,1740814245563,-716.33,0.00034794,2]
[354912780,1740814245572,-616.57,0.00034794,2]
[354912781,1740814245582,-500.0,0.00034794,2]
[354912782,1740814245592,-2413.2,0.00034794,2]
[354912783,1740814245602,-911.66,0.00034794,2]
[354912784,1740814245611,-500.0,0.00034794,2]
[354912785,1740814245621,-3399.71,0.00034794,2]
[354912786,1740814245631,-500.0,0.00034794,2]
[354912787,1740814245640,-837.2,0.00034794,2]
[354912788,1740814245650,-7479.01,0.00034794,2]
[354912789,1740814245659,-500.0,0.00034794,2]
[354912790,1740814245669,-500.0,0.00034794,2]
[354912791,1740814245679,-500.0,0.00034794,2]
[354912792,1740814245688,-597.61,0.00034794,2]
[354912793,1740814245697,-3075.19,0.00034794,2]
[354912794,1740814245708,-500.0,0.0003491,5]
[354912795,1740814245718,-208.87729278,0.00035005,7]
[354912796,1740814245727,-500.0,0.00035066,2]
[354912797,1740814245737,-500.0,0.00035066,2]
[354912799,1740814245746,-550.75138483,0.00035067,2]
[354912801,1740814245756,-500.0,0.00035067,2]
[354912803,1740814245766,-500.0,0.00035067,2]
[354912805,1740814245775,-612.26,0.00035067,2]
[354912807,1740814245787,-1373.62,0.00035067,2]
[354912809,1740814245798,-571.02302373,0.00035067,2]
[354912811,1740814245808,-500.0,0.00035067,2]
[354912813,1740814245818,-500.0,0.00035067,2]
[354912814,1740814245828,-500.0,0.00035067,2]
[354912815,1740814245837,-500.0,0.00035067,2]
[354912816,1740814245846,-500.0,0.00035067,2]
[354912817,1740814245856,-500.0,0.00035067,2]
[354912818,1740814245868,-819.56,0.00035067,2]
[354912819,1740814245879,-506.40713011,0.00035067,2]
[354912820,1740814245889,-540.23,0.00035067,2]
[354912821,1740814245898,-500.0,0.00035067,2]
[354912822,1740814245908,-500.0,0.00035067,2]
[354912823,1740814245918,-500.0,0.00035067,2]
[354912824,1740814245929,-500.0,0.00035067,2]
[354912825,1740814245938,-500.0,0.00035067,2]
[354912826,1740814245948,-500.0,0.00035067,2]
[354912827,1740814245958,-500.0,0.00035067,2]
[354912828,1740814245967,-500.0,0.00035067,2]
[354912829,1740814245977,-503.57156651,0.00035067,2]
[354912830,1740814245986,-500.0,0.00035067,2]
[354912831,1740814245995,-500.0,0.00035067,2]
[354912832,1740814246004,-500.0,0.00035067,2]
[354912833,1740814246014,-500.0,0.00035067,2]
[354912834,1740814246023,-500.0,0.00035067,2]
[354912835,1740814246033,-500.0,0.00035067,2]
[354912836,1740814246043,-500.0,0.00035067,2]
[354912837,1740814246052,-500.0,0.00035067,2]
[354912839,1740814246063,-500.0,0.00035067,2]
[354912840,1740814246073,-500.8,0.00035067,2]
[354912841,1740814246083,-553.34,0.00035067,2]
[354912842,1740814246092,-500.0,0.00035067,2]
[354912843,1740814246102,-500.0,0.00035067,2]
[354912844,1740814246112,-1088.88,0.00035067,2]
[354912845,1740814246122,-500.0,0.00035067,2]
[354912846,1740814246131,-500.0,0.00035067,2]
[354912847,1740814246141,-616.2,0.00035067,2]
[354912848,1740814246151,-500.0,0.00035067,2]
[354912849,1740814246160,-200.0,0.00035067,2]
[354912850,1740814246170,-500.0,0.00035067,2]
[354912851,1740814246180,-539.33,0.00035067,2]
[354912852,1740814246189,-500.0,0.00035067,2]
[354912853,1740814246259,-500.0,0.00035067,2]
[354912854,1740814246269,-500.0,0.00035067,2]
[354912855,1740814246279,-540.41,0.00035067,2]
[354912856,1740814246288,-500.0,0.00035067,2]
[354912857,1740814246298,-500.0,0.00035067,2]
[354912858,1740814246308,-1087.92,0.00035067,2]
[354912859,1740814246318,-500.0,0.00035067,2]
[354912860,1740814246327,-1009.19,0.00035067,2]
[354912861,1740814246337,-750.95,0.00035067,2]
[354912862,1740814246347,-500.0,0.00035067,2]
[354912863,1740814246356,-250.80359435,0.00035067,2]
[354912864,1740814246366,-500.0,0.00035067,2]
[354912865,1740814246376,-832.37,0.00035067,2]
[354912866,1740814246385,-500.0,0.00035067,2]
[354912867,1740814246394,-500.0,0.00035067,2]
[354912868,1740814246404,-500.0,0.00035067,2]
[354912869,1740814246413,-500.0,0.00035067,2]
[354912870,1740814246423,-500.0,0.00035067,2]
[354912871,1740814246435,-500.0,0.00035067,2]
[354912872,1740814246444,-500.0,0.00035067,2]
[354912873,1740814246455,-500.0,0.00035067,2]
[354912874,1740814246465,-551.21,0.00035067,2]
[354912875,1740814246474,-500.0,0.00035067,2]
[354912876,1740814246483,-1122.24,0.00035067,2]
[354912877,1740814246492,-719.3,0.00035067,2]
[354912878,1740814246501,-613.49,0.00035067,2]
[354912879,1740814246512,-500.0,0.00035067,2]
[354912880,1740814246521,-500.0,0.00035067,2]
[354912881,1740814246532,-500.0,0.00035067,2]
[354912882,1740814246543,-500.0,0.00035067,2]
[354912883,1740814246552,-881.52,0.00035067,2]
[354912884,1740814246561,-500.0,0.00035067,2]
[354912885,1740814246571,-1953.39,0.00035067,2]
[354912886,1740814246581,-501.56,0.00035067,2]
[354912887,1740814246591,-1531.49,0.00035067,2]
[354912888,1740814246601,-500.0,0.00035067,2]
[354912889,1740814246611,-500.0,0.00035067,2]
[354912890,1740814246621,-1480.66,0.00035067,2]
[354912891,1740814246630,-212.34674035,0.00035067,2]
[354912892,1740814246639,-500.0,0.00035067,2]
[354912893,1740814246648,-500.0,0.00035067,2]
[354912894,1740814246658,-500.0,0.00035067,2]
[354912895,1740814246669,-500.0,0.00035067,2]
[354912896,1740814246678,-500.0,0.00035067,2]
[354912897,1740814246688,-500.0,0.00035067,2]
[354912898,1740814246698,-500.0,0.00035067,2]
[354912899,1740814246708,-1824.0,0.00035067,2]
[354912900,1740814246718,-672.53,0.00035067,2]
[354912901,1740814246727,-500.0,0.00035067,2]
[354912902,1740814246736,-500.0,0.00035067,2]
[354912903,1740814246745,-500.0,0.00035067,2]
[354912904,1740814246755,-500.0,0.00035067,2]
[354912905,1740814246764,-500.0,0.00035067,2]
[354912906,1740814246773,-500.0,0.00035067,2]
[354912907,1740814246783,-500.0,0.00035067,2]
[354912908,1740814246796,-500.0,0.00035067,2]
[354912909,1740814246806,-2265.96,0.00035067,2]
[354912910,1740814246815,-500.0,0.00035067,2]
[354912911,1740814246824,-639.52,0.00035067,2]
[354912912,1740814246834,-500.0,0.00035067,2]
[354912913,1740814246843,-500.0,0.00035067,2]
[354912914,1740814246852,-500.0,0.00035067,2]
[354912915,1740814246861,-731.19,0.00035067,2]
[354912916,1740814246872,-500.0,0.00035067,2]
[354912917,1740814246882,-500.0,0.00035067,2]
[354912918,1740814246891,-500.0,0.00035067,2]
[354912919,1740814246900,-1376.86,0.00035067,2]
[354912920,1740814246910,-500.0,0.00035067,2]
[354912921,1740814246920,-318.20195733,0.00035067,2]
[354912922,1740814246929,-500.0,0.00035067,2]
[354912923,1740814246938,-500.0,0.00035067,2]
[354912924,1740814246948,-517.81555958,0.00035067,2]
[354912925,1740814246958,-500.0,0.00035067,2]
[354912926,1740814246967,-707.41,0.00035067,2]
[354912927,1740814246976,-500.0,0.00035067,2]
[354912928,1740814246986,-500.0,0.00035067,2]
[354912929,1740814246996,-500.0,0.00035067,2]
[354912930,1740814247005,-500.0,0.00035067,2]
[354912931,1740814247015,-500.0,0.00035067,2]
[354912932,1740814247024,-500.0,0.00035067,2]
[354912933,1740814247034,-883.04,0.00035067,2]
[354912934,1740814247043,-813.37,0.00035067,2]
[354912935,1740814247053,-1341.6,0.00035067,2]
[354912936,1740814247062,-500.0,0.00035067,2]
[354912937,1740814247071,-1032.13,0.00035067,2]
[354912938,1740814247079,-500.0,0.00035067,2]
[354912939,1740814247088,-500.0,0.00035067,2]
[354912940,1740814247098,-593.34,0.00035067,2]
[354912941,1740814247107,-500.0,0.00035067,2]
[354912942,1740814247116,-500.0,0.00035067,2]
[354912943,1740814247125,-500.0,0.00035067,2]
[354912944,1740814247134,-434.92618331,0.00035067,2]
[354912945,1740814247143,-500.0,0.00035067,2]
[354912946,1740814247152,-500.0,0.00035067,2]
[354912947,1740814247161,-1525.39,0.00035067,2]
[354912948,1740814247170,-500.0,0.00035067,2]
[354912949,1740814247180,-648.03,0.00035067,2]
[354912950,1740814247189,-500.0,0.00035067,2]
[354912951,1740814247198,-500.0,0.00035067,2]
[354912952,1740814247208,-500.0,0.00035067,2]
[354912953,1740814247217,-500.0,0.00035067,2]
[354912954,1740814247226,-500.0,0.00035067,2]
[354912955,1740814247235,-500.0,0.00035067,2]
[354912956,1740814247244,-500.0,0.00035067,2]
[354912957,1740814247253,-500.0,0.00035067,2]
[354912958,1740814247262,-1365.6,0.00035067,2]
[354912959,1740814247271,-863.3,0.00035067,2]
[354912960,1740814247281,-547.45,0.00035067,2]
[354912961,1740814247290,-500.0,0.00035067,2]
[354912962,1740814247300,-736.25,0.00035067,2]
[354912963,1740814247309,-500.0,0.00035067,2]
[354912964,1740814247319,-500.0,0.00035067,2]
[354912965,1740814247328,-500.0,0.00035067,2]
[354912966,1740814247337,-500.0,0.00035067,2]
[354912967,1740814247347,-500.0,0.00035067,2]
[354912968,1740814247358,-1784.02,0.00035067,2]
[354912969,1740814247367,-500.0,0.00035067,2]
[354912970,1740814247376,-2242.91,0.00035067,2]
[354912971,1740814247386,-4243.09,0.00035067,2]
[354912972,1740814247395,-500.0,0.00035067,2]
[354912973,1740814247405,-8124.73,0.00035067,2]
[354912974,1740814247414,-500.0,0.00035067,2]
[354912975,1740814247423,-500.0,0.00035067,2]
[354912976,1740814247432,-500.0,0.00035067,2]
[354912977,1740814247441,-723.8,0.00035067,2]
[354912978,1740814247451,-502.92972512,0.00035067,2]
[354912979,1740814247460,-13128.63,0.00035067,2]
[354912980,1740814247469,-500.0,0.00035067,2]
[354912981,1740814247479,-500.0,0.00035067,2]
[354912982,1740814247488,-500.0,0.00035067,2]
[354912983,1740814247497,-886.02,0.00035067,2]
[354912984,1740814247506,-1035.01,0.00035067,2]
[354912985,1740814247515,-592.53,0.00035067,2]
[354912986,1740814247524,-500.0,0.00035067,2]
[354912987,1740814247533,-500.0,0.00035067,2]
[354912988,1740814247542,-500.0,0.00035067,2]
[354912989,1740814247551,-3752.26,0.00035067,2]
[354912990,1740814247561,-518.21063974,0.00035067,2]
[354912991,1740814247570,-500.0,0.00035067,2]
[354912992,1740814247579,-500.0,0.00035067,2]
[354912993,1740814247588,-500.0,0.00035067,2]
[354912994,1740814247598,-214.74265609,0.00035067,2]
[354912995,1740814247607,-500.0,0.00035067,2]
[354912996,1740814247616,-558.5,0.00035067,2]
[354912997,1740814247625,-749.78,0.00035067,2]
[354912998,1740814247634,-608.97,0.00035067,2]